fUSD/lending_fUSD_20250905
["ID","MTS","AMOUNT","RATE_DAILY","PERIOD"]
[383744556,1757107838998,-500.0,0.0003165,7]
[383744558,1757107839008,-800.0,0.00031681,7]
[383744560,1757107839017,-800.0,0.000317,7]
[383744562,1757107839027,-800.0,0.0003171,7]
[383744564,1757107839037,-700.0,0.00031731,7]
[383744592,1757107839372,-153.0,0.00031752,2]
[383744593,1757107839382,-153.0,0.00031752,2]
[383744594,1757107839391,-153.0,0.00031752,2]
[383744595,1757107839402,-153.0,0.00031752,2]
[383744596,1757107839412,-153.0,0.00031752,2]
[383744598,1757107839421,-153.0,0.00031752,2]
[383744599,1757107839432,-153.0,0.00031752,2]
[383744602,1757107839442,-153.0,0.00031752,2]
[383744604,1757107839452,-153.0,0.00031752,2]
[383744605,1757107839461,-153.0,0.00031752,2]
[383744608,1757107839471,-153.0,0.00031752,2]
[383744609,1757107839481,-500.0,0.00031788,7]
[383744612,1757107839491,-5672.93191959,0.00031799,2]
[383744613,1757107839502,-196.34,0.00031801,2]
[383744615,1757107839511,-500.0,0.00031805,7]
[383744617,1757107839521,-9089.73127582,0.00031821,2]
[383744619,1757107839531,-600.0,0.00031828,7]
[383744621,1757107839540,-800.0,0.00031831,7]
[383744623,1757107839550,-2570.14848042,0.00031858,2]
[383744625,1757107839560,-410.68365985,0.0003186,120]
[383744627,1757107839569,-900.0,0.00031903,7]
[383744629,1757107839579,-500.0,0.00031905,7]
[383744631,1757107839589,-600.0,0.00031914,7]
[383744633,1757107839598,-900.0,0.00031946,7]
[383744636,1757107839609,-800.0,0.00031956,7]
[383744638,1757107839618,-700.0,0.00031957,7]
[383744639,1757107839628,-800.0,0.00031968,7]
[383744642,1757107839637,-500.0,0.00031989,7]
[383744644,1757107839647,-2012.14180963,0.00032,2]
[383744646,1757107839657,-195.23,0.00032,7]
[383744648,1757107839666,-800.0,0.00032023,7]
[383744650,1757107839675,-900.0,0.00032045,7]
[383744652,1757107839685,-600.0,0.00032069,7]
[383744655,1757107839694,-9089.73127582,0.00032077,2]
[383744657,1757107839703,-500.0,0.00032083,7]
[383744659,1757107839712,-5000.0,0.00032087,2]
[383744661,1757107839722,-252.75,0.00032092,30]
[383744664,1757107839731,-700.0,0.00032094,7]
[383744667,1757107839741,-500.0,0.00032197,7]
[383744670,1757107839751,-500.0,0.00032201,7]
[383744673,1757107839761,-500.0,0.00032209,7]
[383744675,1757107839771,-500.0,0.00032227,7]
[383744677,1757107839780,-500.0,0.00032244,7]
[383744679,1757107839789,-1331.47121549,0.00032281,2]
[383744681,1757107839798,-5672.93191959,0.00032298,2]
[383744683,1757107839808,-2000.0,0.000323,2]
[383744685,1757107839818,-500.0,0.00032319,7]
[383744686,1757107839828,-500.0,0.0003232,7]
[383744689,1757107839837,-268.5,0.00032328,2]
[383744691,1757107839847,-271.79486925,0.00032348,2]
[383744692,1757107839856,-500.0,0.0003235,7]
[383744695,1757107839866,-250.0,0.00032358,2]
[383744697,1757107839875,-800.0,0.00032368,7]
[383744698,1757107839884,-500.0,0.00032405,7]
[383744701,1757107839894,-170.22,0.00032435,2]
[383744702,1757107839903,-500.0,0.00032442,7]
[383744704,1757107839912,-700.0,0.00032466,7]
[383744706,1757107839922,-500.0,0.00032495,7]
[383744708,1757107839932,-500.0,0.00032551,7]
[383744710,1757107839941,-900.0,0.00032555,7]
[383744712,1757107839951,-9089.73127582,0.00032556,2]
[383744714,1757107839960,-800.0,0.0003256,7]
[383744716,1757107839970,-13045.49554193,0.00032566,30]
[383744718,1757107839979,-700.0,0.00032592,7]
[383744720,1757107839988,-560.44338692,0.00032644,7]
[383744723,1757107839999,-1500.0,0.00032666,16]
[383744725,1757107840009,-700.0,0.00032734,7]
[383744726,1757107840018,-700.0,0.00032737,7]
[383744729,1757107840027,-196.34,0.00032738,2]
[383744731,1757107840037,-900.0,0.00032782,7]
[383744733,1757107840047,-500.0,0.00032783,7]
[383744735,1757107840057,-5672.93191959,0.00032797,2]
[383744737,1757107840067,-500.0,0.00032877,7]
[383744739,1757107840083,-500.0,0.00032877,7]
[383744741,1757107840092,-500.0,0.00032877,7]
[383744743,1757107840101,-500.0,0.00032877,7]
[383744745,1757107840111,-553.6889294,0.00032877,7]
[383744747,1757107840121,-9089.73127582,0.00032878,2]
[383744749,1757107840130,-500.0,0.00032888,7]
[383744751,1757107840139,-800.0,0.00032913,7]
[383744753,1757107840149,-6026.95,0.00032927,2]
[383744755,1757107840159,-800.0,0.00032937,7]
[383744756,1757107840169,-900.0,0.00032942,7]
[383744759,1757107840178,-500.0,0.00032968,7]
[383744761,1757107840188,-800.0,0.00033001,7]
[383744763,1757107840197,-600.0,0.00033027,7]
[383744765,1757107840206,-700.0,0.00033033,7]
[383744767,1757107840216,-700.0,0.00033051,7]
[383744768,1757107840225,-600.0,0.0003306,7]
[383744770,1757107840235,-600.53406039,0.00033146,7]
[383744773,1757107840245,-700.0,0.00033152,7]
[383744775,1757107840256,-500.0,0.00033166,7]
[383744776,1757107840265,-175.42932374,0.00033177,2]
[383744778,1757107840275,-600.0,0.00033198,7]
[383744781,1757107840284,-800.0,0.00033203,7]
[383744783,1757107840294,-500.0,0.0003325,7]
[383744784,1757107840303,-5672.93191959,0.00033296,2]
[383744787,1757107840313,-271.79486925,0.00033332,2]
[383744789,1757107840322,-2570.14848042,0.00033351,2]
[383744790,1757107840332,-700.0,0.00033356,7]
[383744792,1757107840342,-186.36379049,0.00033376,2]
[383744795,1757107840352,-180.18517051,0.00033395,7]
[383744797,1757107840361,-900.0,0.000334,7]
[383744799,1757107840370,-500.0,0.00033419,7]
[383744801,1757107840379,-700.0,0.0003342,7]
[383744802,1757107840389,-800.0,0.00033433,7]
[383744805,1757107840398,-9089.73127582,0.0003344,2]
[383744806,1757107840408,-900.0,0.0003345,7]
[383744809,1757107840417,-500.0,0.00033452,7]
[383744810,1757107840427,-800.0,0.00033461,7]
[383744812,1757107840436,-700.0,0.00033466,7]
[383744814,1757107840445,-900.0,0.00033482,7]
[383744816,1757107840455,-500.0,0.00033493,7]
[383744818,1757107840465,-700.0,0.00033562,7]
[383744820,1757107840474,-500.0,0.00033585,7]
[383744823,1757107840484,-700.0,0.00033599,7]
[383744824,1757107840493,-700.0,0.0003361,7]
[383744826,1757107840503,-700.0,0.00033674,7]
[383744828,1757107840512,-500.0,0.00033694,7]
[383744830,1757107840521,-151.0,0.00033694,7]
[383744832,1757107840530,-151.0,0.00033694,7]
[383744834,1757107840540,-151.0,0.00033694,7]
[383744836,1757107840549,-151.0,0.00033694,7]
[383744838,1757107840558,-151.0,0.00033694,7]
[383744840,1757107840567,-152.792714,0.00033694,7]
[383744842,1757107840576,-151.0,0.00033694,7]
[383744844,1757107840585,-151.0,0.00033694,7]
[383744846,1757107840594,-151.0,0.00033694,7]
[383744848,1757107840604,-151.0,0.00033694,7]
[383744850,1757107840613,-151.0,0.00033694,7]
[383744852,1757107840622,-500.0,0.00033782,7]
[383744854,1757107840631,-5672.93191959,0.00033794,2]
[383744856,1757107840640,-800.0,0.00033828,7]
[383744858,1757107840650,-311.88373687,0.00033829,2]
[383744860,1757107840659,-600.0,0.00033831,7]
[383744862,1757107840668,-700.0,0.00033842,7]
[383744864,1757107840677,-500.0,0.0003386,7]
[383744866,1757107840686,-600.0,0.00033879,7]
[383744868,1757107840695,-900.0,0.00033897,7]
[383744870,1757107840704,-900.0,0.00033911,7]
[383744872,1757107840713,-500.0,0.00033915,7]
[383744874,1757107840723,-261.78515704,0.00033927,2]
[383744876,1757107840732,-700.0,0.00033934,7]
[383744878,1757107840742,-268.5,0.00033945,2]
[383744880,1757107840752,-800.0,0.00033963,7]
[383744882,1757107840761,-345.0,0.00034,2]
[383744884,1757107840770,-13221.61230327,0.00034,4]
[383744886,1757107840780,-700.0,0.00034026,7]
[383744888,1757107840789,-500.0,0.00034041,7]
[383744890,1757107840798,-500.0,0.00034085,7]
[383744892,1757107840808,-9089.73127582,0.00034092,2]
[383744895,1757107840818,-3626.0,0.00034102,2]
[383744897,1757107840828,-700.0,0.00034116,7]
[383744898,1757107840837,-800.0,0.00034129,7]
[383744901,1757107840847,-700.0,0.0003418,7]
[383744902,1757107840857,-900.0,0.00034184,7]
[383744905,1757107840867,-700.0,0.00034224,7]
[383744907,1757107840876,-151.0,0.00034224,7]
[383744908,1757107840885,-900.0,0.00034266,7]
[383744910,1757107840895,-5672.93191959,0.00034293,2]
[383744912,1757107840904,-700.0,0.000343,7]
[383744914,1757107840914,-271.79486925,0.00034316,2]
[383744917,1757107840923,-700.0,0.00034328,7]
[383744918,1757107840933,-700.0,0.00034349,7]
[383744921,1757107840943,-700.0,0.00034367,7]
[383744923,1757107840952,-719.505,0.00034373,38]
[383744924,1757107840961,-900.0,0.00034374,7]
[383744926,1757107840971,-9089.73127582,0.00034378,2]
[383744929,1757107840980,-17362.08,0.00034388,2]
[383744930,1757107840990,-160.0,0.00034388,7]
[383744933,1757107841000,-500.0,0.00034396,7]
[383744935,1757107841010,-1000.0,0.000344,7]
[383744937,1757107841019,-500.0,0.00034403,7]
[383744939,1757107841028,-3626.0,0.00034405,120]
[383744941,1757107841037,-900.0,0.0003444,7]
[383744942,1757107841047,-9089.73127582,0.0003444,2]
[383744944,1757107841056,-1312.92157434,0.0003445,2]
[383744947,1757107841066,-800.0,0.00034452,7]
[383744948,1757107841078,-500.0,0.00034454,7]
[383744950,1757107841088,-700.0,0.0003449,7]
[383744952,1757107841097,-200.0,0.0003449,120]
[383744954,1757107841107,-700.0,0.00034492,7]
[383744956,1757107841117,-9341.11310612,0.00034498,2]
[383744958,1757107841127,-18179.4625516,0.00034508,2]
[383744960,1757107841137,-9341.11310612,0.00034508,2]
[383744963,1757107841147,-1175.0,0.00034518,2]
[383744965,1757107841157,-792.978,0.00034518,2]
[383744967,1757107841167,-923.0,0.00034518,2]
[383744969,1757107841176,-1258.0,0.00034518,2]
[383744971,1757107841187,-2034.0,0.00034518,2]
[383744973,1757107841196,-3382.0,0.00034518,2]
[383744975,1757107841206,-4163.0,0.00034518,2]
[383744976,1757107841215,-567.0,0.00034518,2]
[383744979,1757107841225,-1577.0,0.00034518,2]
[383744981,1757107841235,-1300.0,0.00034518,2]
[383744983,1757107841244,-600.0,0.00034518,2]
[383744985,1757107841257,-6164.0,0.00034518,2]
[383744986,1757107841266,-724.0,0.00034518,2]
[383744988,1757107841275,-21153.0,0.00034518,2]
[383744991,1757107841285,-500.0,0.00034562,7]
[383744992,1757107841295,-9341.11310612,0.0003459,2]
[383744994,1757107841304,-151.0,0.0003459,7]
[383744997,1757107841314,-151.0,0.0003459,7]
[383744998,1757107841324,-151.0,0.0003459,7]
[383745000,1757107841333,-151.0,0.0003459,7]
[383745003,1757107841343,-151.0,0.0003459,7]
[383745004,1757107841352,-151.0,0.0003459,7]
[383745006,1757107841362,-151.0,0.0003459,7]
[383745008,1757107841371,-170.935733,0.0003459,7]
[383745010,1757107841381,-151.0,0.0003459,7]
[383745013,1757107841392,-151.0,0.0003459,7]
[383745015,1757107841401,-1100.0,0.000346,12]
[383745017,1757107841411,-500.0,0.00034625,7]
[383745019,1757107841420,-800.0,0.00034625,7]
[383745021,1757107841429,-336.75609389,0.00034626,2]
[383745023,1757107841439,-1387.56301,0.0003464,2]
[383745025,1757107841449,-800.0,0.00034649,7]
[383745027,1757107841459,-19999.99,0.00034649,2]
[383745029,1757107841468,-800.0,0.00034662,7]
[383745031,1757107841478,-2200.0,0.000347,12]
[383745033,1757107841488,-151.0,0.000347,7]
[383745035,1757107841497,-151.0,0.000347,7]
[383745037,1757107841507,-242.391,0.000347,7]
[383745039,1757107841516,-151.0,0.000347,7]
[383745040,1757107841527,-151.0,0.000347,7]
[383745042,1757107841536,-1000.0,0.000347,7]
[383745045,1757107841546,-2332.83,0.000347,7]
[383745047,1757107841555,-195.23,0.000347,7]
[383745049,1757107841565,-900.0,0.00034705,7]
[383745051,1757107841575,-500.0,0.00034705,7]
[383745053,1757107841583,-800.0,0.00034725,7]
[383745055,1757107841593,-800.0,0.00034727,7]
[383745057,1757107841602,-9341.11310612,0.0003476,2]
[383745059,1757107841611,-151.0,0.0003477,7]
[383745061,1757107841622,-9089.73127582,0.0003477,2]
[383745063,1757107841631,-500.0,0.00034773,7]
[383745065,1757107841640,-150.0,0.0003478,2]
[383745067,1757107841649,-500.0,0.0003478,2]
[383745069,1757107841659,-150.0,0.0003478,2]
[383745071,1757107841668,-150.0,0.0003478,2]
[383745073,1757107841677,-150.0,0.0003478,2]
[383745075,1757107841686,-150.0,0.0003478,2]
[383745077,1757107841695,-150.0,0.0003478,2]
[383745079,1757107841704,-8195.8341,0.0003478,2]
[383745081,1757107841714,-1000.0,0.0003478,2]
[383745083,1757107841723,-212.63008182,0.00034786,2]
[383745085,1757107841733,-9341.11310612,0.00034791,2]
[383745087,1757107841742,-700.0,0.00034792,7]
[383745089,1757107841752,-800.0,0.00034792,7]
[383745091,1757107841762,-5672.93191959,0.00034792,2]
[383745093,1757107841772,-3300.0,0.000348,12]
[383745095,1757107841783,-600.0,0.00034801,7]
[383745097,1757107841792,-2570.14848042,0.00034844,2]
[383745099,1757107841802,-500.0,0.00034858,7]
[383745101,1757107841811,-600.0,0.00034859,7]
[383745103,1757107841821,-9341.11310612,0.0003486,2]
[383745105,1757107841830,-8308.04718053,0.0003487,2]
[383745107,1757107841840,-27269.1938275,0.0003487,2]
[383745109,1757107841849,-28023.3393184,0.0003487,2]
[383745111,1757107841858,-500.0,0.00034872,2]
[383745113,1757107841868,-151.0,0.0003488,7]
[383745115,1757107841878,-151.0,0.0003488,7]
[383745117,1757107841887,-151.0,0.0003488,7]
[383745119,1757107841898,-151.0,0.0003488,7]
[383745121,1757107841908,-151.0,0.0003488,7]
[383745123,1757107841917,-151.0,0.0003488,7]
[383745125,1757107841927,-151.0,0.0003488,7]
[383745127,1757107841937,-151.0,0.0003488,7]
[383745129,1757107841946,-52239.1047,0.0003488,2]
[383745131,1757107841955,-9341.11310612,0.0003489,2]
[383745133,1757107841965,-9089.73127582,0.0003489,2]
[383745135,1757107841974,-627.76552486,0.0003489,2]
[383745137,1757107841983,-1000.0,0.0003489,2]
[383745139,1757107841994,-5000.0,0.000349,2]
[383745141,1757107842005,-954.02508288,0.000349,2]
[383745143,1757107842014,-4500.0,0.000349,12]
[383745145,1757107842025,-154.83344245,0.000349,2]
[383745147,1757107842034,-154.83344245,0.000349,2]
[383745149,1757107842044,-600.0,0.00034926,7]
[383745151,1757107842053,-9341.11310612,0.00034939,2]
[383745153,1757107842063,-18179.4625516,0.00034949,2]
[383745155,1757107842075,-18682.2262122,0.00034949,2]
[383745157,1757107842085,-46705.5655306,0.00034952,2]
[383745159,1757107842094,-154.35,0.00034952,2]
[383745161,1757107842104,-181.73039888,0.00034952,2]
[383745163,1757107842114,-181.73039888,0.00034954,2]
[383745165,1757107842126,-181.73039888,0.00034954,2]
[383745167,1757107842135,-800.0,0.00034955,7]
[383745169,1757107842145,-36847.0,0.00034959,2]
[383745171,1757107842155,-151.0,0.00034959,7]
[383745173,1757107842165,-151.0,0.00034959,7]
[383745175,1757107842173,-259.941789,0.00034959,7]
[383745177,1757107842183,-151.0,0.00034959,7]
[383745179,1757107842192,-151.0,0.00034959,7]
[383745181,1757107842201,-151.0,0.00034959,7]
[383745183,1757107842211,-151.0,0.00034959,7]
[383745185,1757107842220,-236.247032,0.00034959,7]
[383745187,1757107842230,-500.0,0.0003496,7]
[383745189,1757107842240,-151.0,0.00034962,7]
[383745191,1757107842251,-151.0,0.00034962,7]
[383745193,1757107842261,-151.0,0.00034962,7]
[383745195,1757107842270,-151.0,0.00034962,7]
[383745197,1757107842279,-151.0,0.00034962,7]
[383745199,1757107842288,-151.0,0.00034962,7]
[383745201,1757107842298,-81807.5814824,0.00034962,2]
[383745203,1757107842307,-130775.583486,0.00034962,2]
[383745205,1757107842317,-1809293.5635401,0.00034964,6]
[383745208,1757107842334,-528.5078851,0.00034964,6]
[383745210,1757107842345,-5656.88608171,0.00034964,6]
[383745220,1757107842440,-151.0,0.0003488,7]
[383745222,1757107842449,-766.54511471,0.00034964,6]
[383745224,1757107842460,-628.73244732,0.00034964,6]
[383745226,1757107842472,-261.52156641,0.00034964,6]
[383745240,1757107842680,-179.94,0.00030499,30]
[383745241,1757107842690,-56956.83763258,0.00034964,6]
[383745243,1757107842702,-729.69057292,0.00034964,6]
[383745258,1757107842775,-543.57890316,0.00034964,6]
[383745262,1757107842786,-3782.26778049,0.00034964,6]
[383745265,1757107842798,-12996.96232217,0.00034964,6]
[383745268,1757107842809,-1073.33713411,0.00034964,6]
[383745270,1757107842821,-655.00000018,0.00034964,6]
[383745273,1757107842832,-1163.39689181,0.00034964,6]
[383745275,1757107842843,-9713.95331018,0.00034964,6]
[383745277,1757107842854,-5465.56812994,0.00034964,6]
[383745279,1757107842866,-780.19863605,0.00034964,6]
[383745298,1757107843595,-939.90343346,0.000249,2]
[383745299,1757107843606,-939.90343321,0.00025929,4]
[383745300,1757107843615,-176.23151941,0.00026959,6]
[383745301,1757107843627,-763.6719138,0.00026959,6]
[383745302,1757107843637,-939.90343321,0.00027988,8]
[383745303,1757107843646,-939.90343321,0.00029017,11]
[383745304,1757107843656,-939.90343321,0.00030046,13]
[383745305,1757107843665,-939.90343321,0.00031076,15]
[383745306,1757107843675,-939.90343321,0.00032105,17]
[383745307,1757107843684,-179.94,0.00032216,30]
[383745308,1757107843694,-939.90343321,0.00033134,19]
[383745309,1757107843703,-179.94,0.00033933,30]
[383745310,1757107843714,-939.90343321,0.00034164,22]
[383745312,1757107843723,-206.336768,0.00034959,7]
[383745314,1757107843733,-48791.02690493,0.00034964,6]
[383745319,1757107843769,-402033.74570842,0.00034964,6]
[383745321,1757107843781,-4804.79855869,0.00034964,6]
[383745324,1757107843796,-67884.19461243,0.00034964,6]
[383745326,1757107843811,-448.68137032,0.00034964,6]
[383745329,1757107843823,-5473.89857607,0.00034964,6]
[383745334,1757107843863,-11359.13167176,0.00034964,6]
[383745338,1757107843891,-2175.0587296,0.00034964,6]
[383745341,1757107843907,-59587.51828459,0.00034964,6]
[383745343,1757107843919,-44092.16589385,0.00034964,6]
[383745368,1757107844896,-2185.86120213,0.00034964,6]
[383745369,1757107844913,-12921.45099011,0.00034964,6]
[383745370,1757107844926,-267.15,0.00034964,6]
[383745374,1757107845933,-462660.77655725,0.00034964,6]
[383745386,1757107846562,-719.37505185,0.00019664,2]
[383745387,1757107846573,-234.9771274,0.00022573,7]
[383745388,1757107846582,-10765.41084621,0.00034964,6]
[383745389,1757107846595,-6784.69571503,0.00034964,6]
[383745390,1757107846606,-4576.43295236,0.00034964,6]
[383745391,1757107846618,-5277.18190251,0.00034964,6]
[383745392,1757107846629,-4452.02997429,0.00034964,6]
[383745393,1757107846640,-4807.14543943,0.00034964,6]
[383745394,1757107846651,-772.98081719,0.00034964,6]
[383745395,1757107846663,-717.3999998,0.00034964,6]
[383745396,1757107846675,-122149.77669808,0.00034964,6]
[383745397,1757107846690,-2652.31181741,0.00034964,6]
[383745398,1757107846702,-3101.8626,0.00034964,6]
[383745399,1757107846732,-16656.24488233,0.00034964,6]
[383745400,1757107846746,-7023.87377839,0.00034964,6]
[383745401,1757107846759,-2134.28261561,0.00034964,6]
[383745402,1757107846770,-57233.20490448,0.00034964,6]
[383745403,1757107846798,-275.923255,0.00034964,6]
[383745404,1757107846893,-2223.74664,0.00034964,6]
[383745405,1757107846907,-1556.90209811,0.00034964,6]
[383745421,1757107922566,2500.0,0.00021999,120]
[383745422,1757107922725,2500.0,0.00026437,120]
[383745423,1757107924798,300.0,0.00021999,120]
[383745424,1757108034027,155.07,0.00013699,2]
[383745441,1757108748404,165.9,0.00015969,2]
[383745442,1757108750473,-165.9,0.00019162,2]
[383745457,1757109031968,-611.7691986,0.000219,2]
[383745458,1757109031979,-165.9,0.00022356,2]
[383745459,1757109031988,-155.07,0.00023182,2]
[383745460,1757109031997,-250.0,0.0002409,2]
[383745461,1757109032006,-536.7615047,0.000249,2]
[383745463,1757109032016,-252.19246198,0.00024909,2]
[383745464,1757109032028,-292.03745316,0.000251,2]
[383745465,1757109032038,-150.0,0.000252,2]
[383745466,1757109032047,-192.0,0.000252,2]
[383745467,1757109032056,-245.76,0.000252,2]
[383745468,1757109032065,-392.5849171,0.000252,2]
[383745469,1757109032075,-165.9,0.0002555,2]
[383745470,1757109032084,-536.7615046,0.00025929,4]
[383745471,1757109032093,-212.63008182,0.00026707,2]
[383745480,1757109032388,-536.7615046,0.00026959,6]
[383745483,1757109032398,-1200.0,0.00027616,2]
[383745485,1757109032407,-2123.0,0.000277,5]
[383745487,1757109032416,-300.0,0.00027899,2]
[383745489,1757109032426,-536.7615046,0.00027988,8]
[383745491,1757109032435,-165.9,0.00028743,2]
[383745493,1757109032443,-536.7615046,0.00029017,11]
[383745497,1757109032453,-151.0,0.00030046,7]
[383745498,1757109032462,-536.7615046,0.00030046,13]
[383745502,1757109032472,-420.0,0.00030134,2]
[383745504,1757109032481,-500.0,0.00030162,7]
[383745507,1757109032489,-500.0,0.00030243,7]
[383745510,1757109032499,-500.0,0.00030257,7]
[383745512,1757109032509,-1703.74,0.00030307,2]
[383745514,1757109032518,-500.0,0.00030315,7]
[383745516,1757109032528,-500.0,0.00030365,7]
[383745518,1757109032537,-500.0,0.00030378,7]
[383745520,1757109032547,-500.0,0.00030406,7]
[383745522,1757109032556,-500.28,0.00030452,2]
[383745524,1757109032566,-500.0,0.000305,7]
[383745527,1757109032575,-500.0,0.00030535,7]
[383745529,1757109032585,-500.0,0.00030591,2]
[383745531,1757109032594,-500.0,0.00030592,7]
[383745533,1757109032603,-346.58,0.000306,2]
[383745535,1757109032613,-500.0,0.00030714,7]
[383745537,1757109032622,-500.0,0.00030748,7]
[383745539,1757109032631,-500.0,0.00030769,7]
[383745541,1757109032640,-500.0,0.00030789,7]
[383745543,1757109032649,-2047.54,0.00030816,2]
[383745545,1757109032659,-500.0,0.00030828,7]
[383745547,1757109032668,-150.0,0.00030835,2]
[383745549,1757109032677,-500.0,0.00030855,7]
[383745551,1757109032686,-500.0,0.00030977,7]
[383745553,1757109032696,-890.599,0.00030984,27]
[383745555,1757109032705,-220.705,0.00030984,27]
[383745556,1757109032715,-1126.62,0.00030986,2]
[383745559,1757109032724,-536.7615046,0.00031076,15]
[383745561,1757109032733,-500.0,0.00031108,7]
[383745562,1757109032743,-500.0,0.00031113,7]
[383745564,1757109032752,-500.0,0.00031141,7]
[383745566,1757109032762,-500.0,0.00031174,7]
[383745569,1757109032773,-532.92,0.00031194,2]
[383745571,1757109032782,-500.0,0.00031241,7]
[383745573,1757109032792,-500.0,0.00031242,7]
[383745575,1757109032801,-5000.0,0.0003129,2]
[383745577,1757109032811,-610.0,0.00031557,2]
[383745579,1757109032821,-293.49,0.00031561,30]
[383745581,1757109032830,-500.0,0.00031597,7]
[383745583,1757109032840,-500.0,0.00031707,7]
[383745585,1757109032851,-500.0,0.00031708,7]
[383745587,1757109032860,-500.0,0.00031739,7]
[383745589,1757109032870,-500.0,0.00031763,7]
[383745591,1757109032879,-6696.25,0.00031784,2]
[383745593,1757109032888,-500.0,0.00031799,7]
[383745595,1757109032897,-500.0,0.00031806,7]
[383745597,1757109032907,-200.0,0.00031835,2]
[383745599,1757109032917,-500.0,0.00031852,7]
[383745600,1757109032926,-500.0,0.00031924,7]
[383745603,1757109032940,-165.9,0.00031937,2]
[383745605,1757109032959,-500.0,0.00031941,7]
[383745608,1757109032972,-500.0,0.00031987,7]
[383745610,1757109032981,-10000.0,0.00032,120]
[383745612,1757109032991,-9999.999999,0.00032,120]
[383745614,1757109033000,-10523.34200693,0.00032046,2]
[383745616,1757109033015,-3133.58759002,0.00032046,2]
[383745619,1757109033033,-562.83436681,0.00032046,2]
[383745623,1757109033065,-1446.7187223,0.00032046,2]
[383745627,1757109033097,-667.76731394,0.00032046,2]
[383745630,1757109033108,-169.06,0.00032046,2]
[383745632,1757109033118,-536.7615046,0.00032105,17]
[383745634,1757109033128,-500.0,0.00032114,7]
[383745636,1757109033138,-500.0,0.00032204,7]
[383745638,1757109033148,-500.0,0.00032207,7]
[383745640,1757109033157,-500.0,0.00032274,7]
[383745642,1757109033167,-500.0,0.00032315,7]
[383745644,1757109033177,-500.0,0.0003235,7]
[383745646,1757109033187,-500.0,0.00032352,7]
[383745648,1757109033196,-160.0,0.00032364,7]
[383745650,1757109033206,-180.4,0.00032431,2]
[383745652,1757109033216,-500.0,0.00032478,7]
[383745654,1757109033226,-587.0,0.00032548,2]
[383745656,1757109033236,-500.0,0.00032564,7]
[383745658,1757109033245,-500.0,0.00032574,7]
[383745660,1757109033255,-617.89901712,0.00032595,7]
[383745662,1757109033266,-2000.0,0.000326,2]
[383745664,1757109033275,-500.0,0.00032623,7]
[383745666,1757109033285,-155.07,0.00032666,2]
[383745669,1757109033294,-500.0,0.00032685,7]
[383745671,1757109033304,-532.92,0.00032754,2]
[383745673,1757109033314,-169.59,0.0003281,2]
[383745675,1757109033324,-500.0,0.00032878,7]
[383745677,1757109033333,-442.0,0.000329,2]
[383745679,1757109033344,-500.0,0.00032961,7]
[383745681,1757109033354,-174.0,0.00033,14]
[383745683,1757109033364,-500.0,0.00033004,7]
[383745685,1757109033373,-500.0,0.00033051,7]
[383745687,1757109033383,-291.0,0.00033128,7]
[383745689,1757109033393,-536.7615046,0.00033134,19]
[383745691,1757109033402,-500.0,0.00033169,7]
[383745693,1757109033412,-500.0,0.00033252,7]
[383745695,1757109033423,-168.0,0.00033295,2]
[383745697,1757109033432,-500.0,0.00033327,7]